[Event "NJSK 2022 Jeugd C"]
[Site "Almelo, Netherlands"]
[Date "2022.05.03"]
[Round "3.8"]
[White "Fallaux, Storm"]
[Black "Van Batenburg, Mees"]
[Result "0-1"]
[TimeControl "90min + 30sec/move"]
[WhiteElo "1459"]
[BlackElo "1713"]

1. e4 {[%clk 01:30:57]} {[%emt 00:00:02]} c5 {[%clk 01:30:57]} {[%emt
00:00:04]} 2. Nf3 {[%clk 01:31:22]} {[%emt 00:00:06]} Nc6 {[%clk 01:31:25]}
{[%emt 00:00:02]} 3. Bb5 {[%clk 01:31:45]} {[%emt 00:00:07]} g6 {[%clk
01:31:32]} {[%emt 00:00:22]} 4. O-O {[%clk 01:31:51]} {[%emt 00:00:24]} Bg7
{[%clk 01:31:57]} {[%emt 00:00:06]} 5. c3 {[%clk 01:32:12]} {[%emt 00:00:09]}
e5 {[%clk 01:31:37]} {[%emt 00:00:50]} 6. Re1 {[%clk 01:30:16]} {[%emt
00:02:26]} Nge7 {[%clk 01:30:54]} {[%emt 00:01:14]} 7. d3 {[%clk 01:28:49]}
{[%emt 00:01:57]} d6 {[%clk 01:29:42]} {[%emt 00:01:41]} 8. h3 {[%clk
01:27:31]} {[%emt 00:01:47]} O-O {[%clk 01:29:16]} {[%emt 00:00:57]} 9. Na3
{[%clk 01:19:38]} {[%emt 00:08:22]} h6 {[%clk 01:20:58]} {[%emt 00:08:48]} 10.
Nh2 {[%clk 01:14:21]} {[%emt 00:05:47]} f5 {[%clk 01:13:53]} {[%emt 00:07:35]}
11. exf5 {[%clk 01:03:25]} {[%emt 00:11:26]} Bxf5 {[%clk 01:13:49]} {[%emt
00:00:34]} 12. Ng4 {[%clk 01:02:42]} {[%emt 00:01:14]} Kh7 {[%clk 01:11:31]}
{[%emt 00:02:48]} 13. Nc4 {[%clk 00:54:29]} {[%emt 00:08:43]} a6 {[%clk
01:08:17]} {[%emt 00:03:44]} 14. Bxc6 {[%clk 00:53:06]} {[%emt 00:01:53]} Nxc6
{[%clk 01:08:16]} {[%emt 00:00:30]} 15. a4 {[%clk 00:48:52]} {[%emt 00:04:44]}
Bxg4 {[%clk 00:53:23]} {[%emt 00:15:23]} 16. Qxg4 {[%clk 00:48:39]} {[%emt
00:00:44]} Qf6 {[%clk 00:53:36]} {[%emt 00:00:16]} 17. Re2 {[%clk 00:47:18]}
{[%emt 00:01:52]} d5 {[%clk 00:52:36]} {[%emt 00:01:30]} 18. Nb6 {[%clk
00:47:28]} {[%emt 00:00:20]} h5 {[%clk 00:51:29]} {[%emt 00:01:36]} 19. Qg5
{[%clk 00:45:24]} {[%emt 00:02:34]} Rad8 {[%clk 00:49:20]} {[%emt 00:02:39]} 20.
Qxf6 {[%clk 00:43:47]} {[%emt 00:02:06]} Bxf6 {[%clk 00:49:26]} {[%emt
00:00:25]} 21. a5 {[%clk 00:40:49]} {[%emt 00:03:27]} d4 {[%clk 00:46:12]}
{[%emt 00:03:44]} 22. c4 {[%clk 00:38:35]} {[%emt 00:02:44]} Nb4 {[%clk
00:46:25]} {[%emt 00:00:18]} 23. Rd2 {[%clk 00:38:52]} {[%emt 00:00:13]} Rd6
{[%clk 00:37:32]} {[%emt 00:09:22]} 24. Na4 {[%clk 00:29:17]} {[%emt 00:10:05]}
Rc8 {[%clk 00:36:36]} {[%emt 00:01:26]} 25. b3 {[%clk 00:29:25]} {[%emt
00:00:22]} Bd8 {[%clk 00:36:01]} {[%emt 00:01:05]} 26. Nb2 {[%clk 00:29:25]}
{[%emt 00:00:31]} Nc6 {[%clk 00:36:13]} {[%emt 00:00:17]} 27. Re2 {[%clk
00:24:36]} {[%emt 00:05:19]} Nxa5 {[%clk 00:35:47]} {[%emt 00:00:57]} 28. Rxa5
{[%clk 00:21:34]} {[%emt 00:03:32]} Bxa5 {[%clk 00:35:41]} {[%emt 00:00:35]} 29.
Na4 {[%clk 00:21:48]} {[%emt 00:00:17]} b5 {[%clk 00:35:02]} {[%emt 00:01:09]}
30. Nb2 {[%clk 00:21:45]} {[%emt 00:00:32]} Re8 {[%clk 00:34:36]} {[%emt
00:00:56]} 31. f4 {[%clk 00:21:47]} {[%emt 00:00:28]} Rde6 {[%clk 00:34:39]}
{[%emt 00:00:27]} 32. Kf2 {[%clk 00:21:08]} {[%emt 00:01:10]} exf4 {[%clk
00:34:11]} {[%emt 00:00:57]} 33. Rxe6 {[%clk 00:20:35]} {[%emt 00:01:02]} Rxe6
{[%clk 00:34:34]} {[%emt 00:00:08]} 34. Bxf4 {[%clk 00:20:50]} {[%emt
00:00:15]} Rf6 {[%clk 00:34:57]} {[%emt 00:00:07]} 35. Kg3 {[%clk 00:21:07]}
{[%emt 00:00:13]} Be1+ {[%clk 00:35:23]} {[%emt 00:00:04]} 36. Kf3 {[%clk
00:21:26]} {[%emt 00:00:11]} Bd2 {[%clk 00:35:47]} {[%emt 00:00:07]} 37. g3
{[%clk 00:21:20]} {[%emt 00:00:35]} g5 {[%clk 00:36:10]} {[%emt 00:00:07]} 38.
Ke4 {[%clk 00:21:47]} {[%emt 00:00:04]} gxf4 {[%clk 00:36:16]} {[%emt
00:00:24]} 39. Ke5 {[%clk 00:22:06]} {[%emt 00:00:11]} fxg3 {[%clk 00:36:22]}
{[%emt 00:00:25]} 40. cxb5 {[%clk 00:22:02]} {[%emt 00:00:33]} axb5 {[%clk
00:36:44]} {[%emt 00:00:09]} 41. b4 {[%clk 00:22:24]} {[%emt 00:00:08]} cxb4
{[%clk 00:36:51]} {[%emt 00:00:23]} 42. Nc4 {[%clk 00:22:23]} {[%emt 00:00:31]}
bxc4 {[%clk 00:37:00]} {[%emt 00:00:20]} 43. Kxd4 {[%clk 00:22:46]} {[%emt
00:00:07]} g2 {[%clk 00:37:22]} {[%emt 00:00:09]} 44. Kxc4 {[%clk 00:22:54]}
{[%emt 00:00:22]} g1=Q {[%clk 00:37:42]} {[%emt 00:00:09]} 45. h4 {[%clk
00:23:17]} {[%emt 00:00:07]} Rc6+ {[%clk 00:37:53]} {[%emt 00:00:20]} 46. Kd5
{[%clk 00:23:34]} {[%emt 00:00:12]} Qc5+ {[%clk 00:38:14]} {[%emt 00:00:09]} 47.
Ke4 {[%clk 00:23:57]} {[%emt 00:00:08]} Re6+ {[%clk 00:38:35]} {[%emt
00:00:08]} 48. Kf3 {[%clk 00:24:19]} {[%emt 00:00:08]} Qe3+ {[%clk 00:39:04]}
{[%emt 00:00:02]} 49. Kg2 {[%clk 00:24:38]} {[%emt 00:00:10]} Rg6+ {[%clk
00:39:30]} {[%emt 00:00:04]} 50. Kh2 {[%clk 00:24:57]} {[%emt 00:00:10]} Qf2+
{[%clk 00:39:46]} {[%emt 00:00:15]} 51. Kh1 {[%clk 00:25:19]} {[%emt 00:00:08]}
Rg1# {[%clk 00:40:13]} {[%emt 00:00:03]} 0-1

[Event "NJSK 2022 Jeugd C"]
[Site "Almelo, Netherlands"]
[Date "2022.05.03"]
[Round "3.9"]
[White "Lopes, Samuel"]
[Black "Kumar, Prayan Sai"]
[Result "1-0"]
[TimeControl "90min + 30sec/move"]
[WhiteElo "1600"]
[BlackElo "1562"]

1. e4 {[%clk 01:30:57]} {[%emt 00:00:03]} c6 {[%emt 00:00:13]} 2. d4 {[%clk
01:31:21]} d5 {[%clk 01:31:16]} {[%emt 00:00:08]} 3. exd5 {[%clk 01:31:44]}
{[%emt 00:00:06]} cxd5 {[%clk 01:31:38]} {[%emt 00:00:09]} 4. Bd3 {[%clk
01:32:07]} {[%emt 00:00:06]} Nc6 {[%clk 01:31:47]} {[%emt 00:00:22]} 5. c3
{[%clk 01:32:32]} {[%emt 00:00:04]} Nf6 {[%clk 01:30:52]} {[%emt 00:01:25]} 6.
Bf4 {[%clk 01:32:55]} {[%emt 00:00:07]} Bg4 {[%clk 01:30:43]} {[%emt 00:00:39]}
7. Qb3 {[%clk 01:33:18]} {[%emt 00:00:07]} Qd7 {[%clk 01:28:14]} {[%emt
00:02:59]} 8. Nd2 {[%clk 01:33:06]} {[%emt 00:00:41]} e6 {[%clk 01:22:21]}
{[%emt 00:06:25]} 9. Ngf3 {[%clk 01:33:14]} {[%emt 00:00:22]} Bxf3 {[%clk
01:22:24]} {[%emt 00:00:26]} 10. Nxf3 {[%clk 01:33:37]} {[%emt 00:00:07]} a6
{[%clk 01:21:01]} {[%emt 00:01:54]} 11. O-O {[%clk 01:32:44]} {[%emt 00:01:22]}
Be7 {[%clk 01:19:41]} {[%emt 00:01:50]} 12. Rae1 {[%clk 01:31:59]} {[%emt
00:01:15]} O-O {[%clk 01:19:48]} {[%emt 00:00:22]} 13. Ne5 {[%clk 01:31:25]}
{[%emt 00:01:04]} Qc8 {[%clk 01:10:15]} {[%emt 00:10:03]} 14. Qc2 {[%clk
01:30:23]} {[%emt 00:01:32]} h6 {[%clk 01:09:07]} {[%emt 00:01:39]} 15. Re3
{[%clk 01:28:23]} {[%emt 00:02:29]} b5 {[%clk 00:59:38]} {[%emt 00:10:00]} 16.
Qe2 {[%clk 01:21:59]} {[%emt 00:06:53]} g5 {[%clk 00:31:59]} {[%emt 00:28:09]}
17. Rg3 {[%clk 01:20:30]} {[%emt 00:01:59]} Ne8 {[%clk 00:30:55]} {[%emt
00:01:34]} 18. Bxg5 {[%clk 01:17:32]} {[%emt 00:03:28]} hxg5 {[%clk 00:30:52]}
{[%emt 00:00:33]} 19. Qh5 {[%clk 01:16:13]} {[%emt 00:01:48]} f5 {[%clk
00:29:25]} {[%emt 00:01:58]} 20. Rh3 {[%clk 01:16:10]} {[%emt 00:00:34]} Nxe5
{[%clk 00:28:20]} {[%emt 00:01:35]} 21. Qh7# {[%clk 01:16:30]} {[%emt
00:00:10]} 1-0

[Event "NJSK 2022 Jeugd C"]
[Site "Almelo, Netherlands"]
[Date "2022.05.03"]
[Round "3.10"]
[White "Dekker, Thiemen"]
[Black "Venema, Maxime"]
[Result "1-0"]
[TimeControl "90min + 30sec/move"]
[WhiteElo "1935"]
[BlackElo "1614"]

1. e4 {[%clk 01:30:25]} {[%emt 00:00:34]} c5 {[%clk 01:30:55]} {[%emt
00:00:06]} 2. Nf3 {[%clk 01:30:47]} {[%emt 00:00:07]} d6 {[%clk 01:31:15]}
{[%emt 00:00:10]} 3. d4 {[%clk 01:31:14]} {[%emt 00:00:04]} cxd4 {[%clk
01:31:39]} {[%emt 00:00:06]} 4. Nxd4 {[%clk 01:31:39]} {[%emt 00:00:05]} Nf6
{[%clk 01:32:01]} {[%emt 00:00:08]} 5. Nc3 {[%clk 01:32:06]} {[%emt 00:00:03]}
a6 {[%clk 01:32:25]} {[%emt 00:00:06]} 6. Be3 {[%clk 01:32:32]} {[%emt
00:00:03]} e5 {[%clk 01:32:46]} {[%emt 00:00:10]} 7. Nb3 {[%clk 01:32:54]}
{[%emt 00:00:08]} Be7 {[%clk 01:33:03]} {[%emt 00:00:12]} 8. f3 {[%clk
01:33:01]} {[%emt 00:00:23]} Be6 {[%clk 01:33:22]} {[%emt 00:00:12]} 9. Qd2
{[%clk 01:33:25]} {[%emt 00:00:06]} b5 {[%clk 01:32:33]} {[%emt 00:01:19]} 10.
O-O-O {[%clk 01:32:51]} {[%emt 00:01:02]} O-O {[%clk 01:32:20]} {[%emt
00:00:44]} 11. g4 {[%clk 01:32:47]} {[%emt 00:00:35]} b4 {[%clk 01:32:35]}
{[%emt 00:00:15]} 12. Nd5 {[%clk 01:32:13]} {[%emt 00:01:04]} Bxd5 {[%clk
01:31:20]} {[%emt 00:01:45]} 13. exd5 {[%clk 01:32:29]} {[%emt 00:00:13]} a5
{[%clk 01:31:31]} {[%emt 00:00:19]} 14. Kb1 {[%clk 01:25:27]} {[%emt 00:07:32]}
Nbd7 {[%clk 01:27:10]} {[%emt 00:04:51]} 15. g5 {[%clk 01:19:15]} {[%emt
00:06:42]} Nh5 {[%clk 01:25:56]} {[%emt 00:01:43]} 16. f4 {[%clk 01:13:50]}
{[%emt 00:05:56]} exf4 {[%clk 01:21:05]} {[%emt 00:05:21]} 17. Bxf4 {[%clk
01:13:56]} {[%emt 00:00:24]} Nxf4 {[%clk 01:21:31]} {[%emt 00:00:05]} 18. Qxf4
{[%clk 01:14:21]} {[%emt 00:00:04]} Ne5 {[%clk 01:18:10]} {[%emt 00:03:51]} 19.
h4 {[%clk 01:12:01]} {[%emt 00:02:50]} f6 {[%emt 00:00:50]} 20. g6 {[%clk
01:06:49]} {[%emt 00:05:40]} Nxg6 {[%clk 01:16:18]} {[%emt 00:02:03]} 21. Qe4
{[%clk 01:05:43]} {[%emt 00:01:38]} Ne5 {[%clk 01:13:42]} {[%emt 00:03:06]} 22.
Nd4 {[%clk 01:04:25]} {[%emt 00:01:47]} Qd7 {[%clk 01:11:01]} {[%emt 00:03:11]}
23. Bh3 {[%clk 01:01:31]} {[%emt 00:03:24]} Qa7 {[%clk 01:05:05]} {[%emt
00:06:26]} 24. Be6+ {[%clk 00:59:34]} {[%emt 00:02:27]} Kh8 {[%clk 01:01:29]}
{[%emt 00:04:06]} 25. h5 {[%clk 00:54:28]} {[%emt 00:05:36]} Nf7 {[%clk
00:59:23]} {[%emt 00:02:35]} 26. Bf5 {[%clk 00:42:54]} {[%emt 00:12:04]} Ng5
{[%clk 00:59:19]} {[%emt 00:00:35]} 27. Qg2 {[%clk 00:41:08]} {[%emt 00:02:15]}
h6 {[%clk 00:57:26]} {[%emt 00:02:24]} 28. Ne6 {[%clk 00:37:39]} {[%emt
00:03:59]} Rfb8 {[%clk 00:50:25]} {[%emt 00:07:31]} 29. Bd3 {[%clk 00:34:57]}
{[%emt 00:03:12]} Qe3 {[%emt 00:04:28]} 30. Rhe1 {[%clk 00:34:06]} Qf3 {[%clk
00:47:22]} {[%emt 00:00:56]} 31. Qd2 {[%clk 00:31:14]} {[%emt 00:03:22]} Ra7
{[%clk 00:36:31]} {[%emt 00:11:22]} 32. Nf4 {[%clk 00:27:35]} {[%emt 00:04:08]}
Kg8 {[%clk 00:33:14]} {[%emt 00:03:47]} 33. Bf5 {[%clk 00:25:45]} {[%emt
00:02:21]} a4 {[%clk 00:32:18]} {[%emt 00:01:26]} 34. Be6+ {[%clk 00:25:12]}
{[%emt 00:01:02]} Nf7 {[%clk 00:28:15]} {[%emt 00:04:32]} 35. Qd4 {[%clk
00:19:59]} {[%emt 00:05:43]} Rab7 {[%clk 00:26:24]} {[%emt 00:02:21]} 36. Rd3
{[%clk 00:19:18]} {[%emt 00:01:12]} Qxd3 {[%clk 00:22:01]} {[%emt 00:04:53]} 37.
Qxd3 {[%clk 00:19:28]} {[%emt 00:00:20]} a3 {[%clk 00:21:43]} {[%emt 00:00:48]}
38. b3 {[%clk 00:19:45]} {[%emt 00:00:13]} Rc7 {[%clk 00:21:49]} {[%emt
00:00:25]} 39. Bxf7+ {[%clk 00:19:50]} {[%emt 00:00:24]} Kxf7 {[%clk 00:22:12]}
{[%emt 00:00:07]} 40. Qg6+ {[%clk 00:20:10]} {[%emt 00:00:10]} 1-0

[Event "NJSK 2022 Jeugd C"]
[Site "Almelo, Netherlands"]
[Date "2022.05.03"]
[Round "3.11"]
[White "Agarwal, Pranav"]
[Black "Franco, Hugo"]
[Result "1-0"]
[TimeControl "90min + 30sec/move"]
[WhiteElo "1531"]
[BlackElo "1441"]

1. e4 {[%clk 01:30:57]} {[%emt 00:00:03]} c5 {[%clk 01:30:38]} {[%emt
00:00:23]} 2. Nf3 {[%clk 01:31:20]} {[%emt 00:00:06]} Nf6 {[%clk 01:30:05]}
{[%emt 00:01:03]} 3. e5 {[%clk 01:30:44]} {[%emt 00:01:07]} Ng4 {[%clk
01:28:43]} {[%emt 00:01:51]} 4. h3 {[%clk 01:30:32]} {[%emt 00:00:42]} Nh6
{[%clk 01:28:40]} {[%emt 00:00:33]} 5. d4 {[%clk 01:30:41]} {[%emt 00:00:21]}
cxd4 {[%clk 01:27:55]} {[%emt 00:01:15]} 6. Nxd4 {[%clk 01:30:38]} {[%emt
00:00:33]} d6 {[%clk 01:27:41]} {[%emt 00:00:44]} 7. Bb5+ {[%clk 01:29:20]}
{[%emt 00:01:48]} Bd7 {[%clk 01:26:43]} {[%emt 00:01:28]} 8. Bxh6 {[%clk
01:26:54]} {[%emt 00:02:55]} Bxb5 {[%clk 01:26:04]} {[%emt 00:01:09]} 9. e6
{[%clk 01:21:00]} {[%emt 00:06:25]} Qa5+ {[%clk 01:17:32]} {[%emt 00:09:02]} 10.
Bd2 {[%clk 01:21:16]} {[%emt 00:00:12]} Qb6 {[%clk 01:13:32]} {[%emt 00:04:32]}
11. Qh5 {[%clk 01:20:31]} {[%emt 00:01:14]} Qxd4 {[%clk 01:10:20]} {[%emt
00:03:42]} 12. Qxb5+ {[%clk 01:20:43]} {[%emt 00:00:19]} Nc6 {[%clk 01:01:33]}
{[%emt 00:09:18]} 13. Qxb7 {[%clk 01:17:36]} {[%emt 00:03:37]} Qe4+ {[%clk
00:59:33]} {[%emt 00:02:30]} 14. Kd1 {[%clk 01:16:13]} {[%emt 00:01:53]} Rd8
{[%clk 00:58:57]} {[%emt 00:01:06]} 15. f3 {[%clk 01:15:01]} {[%emt 00:01:42]}
Qc4 {[%clk 00:48:24]} {[%emt 00:11:02]} 16. Na3 {[%clk 01:13:22]} {[%emt
00:02:10]} Qc5 {[%clk 00:47:52]} {[%emt 00:01:02]} 17. Be3 {[%clk 01:12:47]}
{[%emt 00:01:04]} Na5 {[%clk 00:46:18]} {[%emt 00:02:04]} 18. Qd7+ {[%clk
01:12:11]} {[%emt 00:01:05]} Rxd7 {[%clk 00:46:01]} {[%emt 00:00:48]} 19. exd7+
{[%clk 01:12:33]} {[%emt 00:00:07]} Kxd7 20. Bxc5 dxc5 {[%clk 00:46:28]} {[%emt
00:00:09]} 21. Ke2 {[%clk 01:13:23]} {[%emt 00:00:07]} g6 {[%clk 00:46:07]}
{[%emt 00:00:51]} 22. Rad1+ {[%clk 01:13:30]} {[%emt 00:00:23]} Kc7 {[%clk
00:45:51]} {[%emt 00:00:46]} 23. Rd2 {[%clk 01:13:15]} {[%emt 00:00:44]} Bg7
{[%clk 00:44:37]} {[%emt 00:01:44]} 24. b3 {[%clk 01:13:36]} {[%emt 00:00:10]}
Bh6 {[%clk 00:43:48]} {[%emt 00:01:19]} 25. Rd3 {[%clk 01:13:42]} {[%emt
00:00:24]} Kc8 {[%clk 00:42:30]} {[%emt 00:01:48]} 26. Rhd1 {[%clk 01:13:54]}
{[%emt 00:00:18]} Nc6 {[%clk 00:41:13]} {[%emt 00:01:47]} 27. Rd7 {[%clk
01:12:26]} {[%emt 00:01:57]} Nd4+ {[%emt 00:00:22]} 28. R1xd4 {[%clk 01:12:43]}
{[%emt 00:00:12]} cxd4 {[%clk 00:41:43]} {[%emt 00:00:10]} 29. Rxd4 {[%clk
01:13:08]} {[%emt 00:00:06]} e5 {[%clk 00:40:37]} {[%emt 00:01:35]} 30. Rd5
{[%clk 01:13:08]} {[%emt 00:00:29]} Re8 {[%clk 00:40:02]} {[%emt 00:01:04]} 31.
Nc4 {[%clk 01:13:23]} {[%emt 00:00:17]} Re7 {[%clk 00:38:30]} {[%emt 00:02:02]}
32. Rxe5 {[%clk 01:13:33]} {[%emt 00:00:20]} Rc7 {[%clk 00:34:10]} {[%emt
00:04:50]} 33. g4 {[%clk 01:10:08]} {[%emt 00:03:55]} Bg7 {[%clk 00:33:00]}
{[%emt 00:01:39]} 34. Rd5 {[%clk 01:09:36]} {[%emt 00:01:02]} h6 {[%clk
00:25:02]} {[%emt 00:08:29]} 35. Kd1 {[%clk 01:08:32]} {[%emt 00:01:34]} Bc3
{[%clk 00:22:40]} {[%emt 00:02:51]} 36. Nd6+ {[%clk 01:06:00]} {[%emt
00:03:03]} Kb8 {[%clk 00:21:00]} {[%emt 00:02:10]} 37. Nb5 {[%clk 01:06:10]}
{[%emt 00:00:21]} Rc6 {[%clk 00:20:06]} {[%emt 00:01:23]} 38. Rd8+ {[%clk
01:06:25]} {[%emt 00:00:14]} Kb7 {[%clk 00:19:37]} {[%emt 00:01:00]} 39. Nxc3
{[%clk 01:06:48]} {[%emt 00:00:07]} Rxc3 {[%clk 00:19:30]} {[%emt 00:00:38]} 40.
Rd7+ {[%clk 01:07:14]} {[%emt 00:00:03]} Rc7 {[%clk 00:19:47]} {[%emt
00:00:13]} 41. Rxc7+ {[%clk 01:07:38]} {[%emt 00:00:06]} Kxc7 {[%clk 00:20:12]}
{[%emt 00:00:06]} 42. Kd2 {[%clk 01:08:03]} {[%emt 00:00:04]} a5 {[%clk
00:20:26]} {[%emt 00:00:16]} 43. Kd3 {[%clk 01:08:28]} {[%emt 00:00:05]} Kd7
{[%emt 00:03:07]} 44. Kd4 {[%clk 01:08:32]} {[%emt 00:00:25]} Kd6 {[%clk
00:17:53]} {[%emt 00:00:37]} 45. c4 {[%clk 01:08:45]} 1-0

[Event "NJSK 2022 Jeugd C"]
[Site "Almelo, Netherlands"]
[Date "2022.05.03"]
[Round "3.12"]
[White "Bosma, Jonathan"]
[Black "Folkers, Sono"]
[Result "0-1"]
[TimeControl "90min + 30sec/move"]
[WhiteElo "884"]
[BlackElo "1519"]

1. e4 {[%clk 01:30:59]} e6 {[%clk 01:30:55]} {[%emt 00:00:05]} 2. d4 {[%clk
01:31:19]} {[%emt 00:00:10]} d5 {[%clk 01:31:19]} {[%emt 00:00:06]} 3. exd5
{[%clk 01:31:29]} {[%emt 00:00:20]} exd5 {[%clk 01:31:40]} {[%emt 00:00:09]} 4.
Nf3 {[%clk 01:31:42]} {[%emt 00:00:16]} Nf6 {[%clk 01:31:51]} {[%emt 00:00:19]}
5. Bd3 {[%clk 01:30:22]} {[%emt 00:01:50]} Bg4 {[%clk 01:31:48]} {[%emt
00:00:33]} 6. h3 {[%clk 01:28:27]} {[%emt 00:02:26]} Bh5 {[%clk 01:32:00]}
{[%emt 00:00:18]} 7. Bf4 {[%clk 01:28:33]} {[%emt 00:00:23]} Nc6 {[%clk
01:31:56]} {[%emt 00:00:35]} 8. Nbd2 {[%clk 01:27:36]} {[%emt 00:01:27]} Nxd4
{[%clk 01:31:17]} {[%emt 00:01:09]} 9. g4 {[%clk 01:27:02]} {[%emt 00:01:04]}
Nxf3+ {[%clk 01:31:23]} {[%emt 00:00:24]} 10. Qxf3 {[%clk 01:27:17]} {[%emt
00:00:15]} Bg6 {[%clk 01:31:29]} {[%emt 00:00:24]} 11. Bxg6 {[%clk 01:27:23]}
{[%emt 00:00:24]} hxg6 {[%clk 01:30:29]} {[%emt 00:01:30]} 12. O-O-O {[%clk
01:27:25]} {[%emt 00:00:28]} Qd7 {[%clk 01:27:42]} {[%emt 00:03:17]} 13. Qe3+
{[%clk 01:14:32]} {[%emt 00:13:23]} Be7 {[%clk 01:27:01]} {[%emt 00:01:10]} 14.
Nb3 {[%clk 01:10:19]} {[%emt 00:04:44]} O-O-O {[%clk 01:25:24]} {[%emt
00:02:06]} 15. Qxa7 {[%clk 01:09:03]} {[%emt 00:01:46]} Qc6 {[%clk 01:22:54]}
{[%emt 00:03:01]} 16. Qe3 {[%clk 00:59:35]} {[%emt 00:09:58]} Rhe8 {[%clk
01:21:00]} {[%emt 00:02:25]} 17. f3 {[%clk 00:54:43]} {[%emt 00:05:22]} Bd6
{[%clk 01:20:29]} {[%emt 00:01:00]} 18. Qd4 {[%clk 00:54:17]} {[%emt 00:00:56]}
Re2 {[%clk 01:19:34]} {[%emt 00:01:25]} 19. Rd2 {[%clk 00:51:35]} {[%emt
00:03:13]} Bxf4 {[%clk 01:15:57]} {[%emt 00:04:06]} 20. Qxf4 {[%clk 00:51:35]}
{[%emt 00:00:30]} Rde8 {[%clk 01:15:05]} {[%emt 00:01:23]} 21. c3 {[%clk
00:49:39]} {[%emt 00:02:26]} Rxd2 {[%clk 01:10:58]} {[%emt 00:04:37]} 22. Qxd2
{[%clk 00:49:22]} {[%emt 00:00:46]} Qa6 {[%clk 01:10:07]} {[%emt 00:01:22]} 23.
Kb1 {[%clk 00:46:48]} {[%emt 00:03:03]} Re2 {[%clk 01:09:12]} {[%emt 00:01:25]}
24. Qd4 {[%clk 00:45:34]} {[%emt 00:01:22]} c6 {[%clk 01:05:15]} {[%emt
00:04:50]} 25. Nc5 {[%clk 00:40:33]} {[%emt 00:05:32]} Qb5 {[%clk 01:03:39]}
{[%emt 00:02:05]} 26. Qb4 {[%clk 00:38:45]} {[%emt 00:02:17]} Qxb4 {[%clk
01:01:16]} {[%emt 00:02:54]} 27. cxb4 {[%clk 00:38:42]} {[%emt 00:00:33]} Nd7
{[%clk 01:01:06]} {[%emt 00:00:39]} 28. Nd3 {[%clk 00:37:57]} {[%emt 00:00:49]}
Rd2 {[%clk 00:58:04]} {[%emt 00:03:59]} 29. Nc1 {[%clk 00:35:35]} {[%emt
00:02:52]} Rf2 {[%clk 00:56:36]} {[%emt 00:01:58]} 30. Re1 {[%clk 00:34:02]}
{[%emt 00:02:04]} Kd8 {[%clk 00:56:21]} {[%emt 00:00:44]} 31. Re3 {[%clk
00:34:12]} {[%emt 00:00:18]} f6 {[%clk 00:55:19]} {[%emt 00:01:34]} 32. Nd3
{[%clk 00:32:41]} {[%emt 00:02:02]} Rh2 {[%clk 00:52:59]} {[%emt 00:02:49]} 33.
Nf4 {[%clk 00:32:59]} {[%emt 00:00:10]} Ne5 {[%clk 00:48:54]} {[%emt 00:04:37]}
34. b5 {[%clk 00:27:00]} {[%emt 00:06:29]} g5 {[%clk 00:48:43]} {[%emt
00:00:41]} 35. Ne6+ {[%clk 00:26:08]} {[%emt 00:01:22]} Ke7 {[%clk 00:48:31]}
{[%emt 00:00:42]} 36. Nxg7 {[%clk 00:25:41]} {[%emt 00:00:57]} Rxh3 {[%clk
00:48:13]} {[%emt 00:00:47]} 37. Nf5+ {[%clk 00:25:39]} {[%emt 00:00:33]} Kd7
{[%clk 00:48:27]} {[%emt 00:00:16]} 38. f4 {[%clk 00:22:14]} {[%emt 00:03:55]}
Rxe3 {[%clk 00:47:31]} {[%emt 00:01:26]} 39. Nxe3 {[%clk 00:22:42]} {[%emt
00:00:03]} gxf4 {[%clk 00:47:52]} {[%emt 00:00:09]} 40. bxc6+ {[%clk 00:22:16]}
{[%emt 00:00:56]} Kxc6 {[%clk 00:46:13]} {[%emt 00:02:09]} 41. Nf1 {[%clk
00:21:16]} {[%emt 00:01:29]} Nxg4 {[%clk 00:46:13]} {[%emt 00:00:30]} 42. Kc2
{[%clk 00:21:25]} {[%emt 00:00:21]} Ne3+ {[%clk 00:45:19]} {[%emt 00:01:24]} 43.
Nxe3 {[%clk 00:21:41]} {[%emt 00:00:13]} fxe3 {[%clk 00:45:41]} {[%emt
00:00:09]} 44. Kd3 {[%clk 00:21:52]} {[%emt 00:00:19]} d4 {[%clk 00:46:06]}
{[%emt 00:00:05]} 45. a4 {[%clk 00:21:12]} {[%emt 00:01:10]} f5 {[%clk
00:46:21]} {[%emt 00:00:15]} 46. b4 {[%clk 00:21:01]} {[%emt 00:00:41]} f4
{[%clk 00:46:14]} {[%emt 00:00:37]} 47. Ke2 {[%clk 00:21:25]} {[%emt 00:00:06]}
Kd5 {[%clk 00:46:23]} {[%emt 00:00:21]} 48. Ke1 {[%clk 00:19:02]} {[%emt
00:02:52]} Kc4 {[%clk 00:45:41]} {[%emt 00:01:13]} 49. b5 {[%clk 00:19:15]}
{[%emt 00:00:17]} Kb4 {[%clk 00:46:04]} {[%emt 00:00:07]} 50. b6 {[%clk
00:19:06]} {[%emt 00:00:40]} Kxa4 {[%clk 00:46:24]} {[%emt 00:00:09]} 51. Ke2
{[%clk 00:19:23]} {[%emt 00:00:11]} Kb5 {[%clk 00:46:48]} {[%emt 00:00:08]} 52.
Kd3 {[%clk 00:19:42]} {[%emt 00:00:11]} Kxb6 {[%clk 00:47:09]} {[%emt
00:00:09]} 53. Kxd4 {[%clk 00:19:57]} {[%emt 00:00:14]} e2 {[%clk 00:47:35]}
{[%emt 00:00:05]} 54. Ke4 {[%clk 00:20:12]} {[%emt 00:00:15]} e1=Q+ {[%clk
00:47:56]} {[%emt 00:00:09]} 55. Kxf4 {[%emt 00:00:18]} Qe6 {[%clk 00:48:16]}
{[%emt 00:00:04]} 56. Kf3 {[%clk 00:20:51]} {[%emt 00:00:10]} Qe5 {[%clk
00:48:41]} {[%emt 00:00:04]} 57. Kg4 {[%emt 00:00:30]} Qf6 {[%clk 00:48:55]}
{[%emt 00:00:09]} 58. Kg3 {[%clk 00:21:17]} {[%emt 00:00:11]} Qf5 {[%clk
00:49:19]} {[%emt 00:00:07]} 59. Kg2 {[%clk 00:21:30]} {[%emt 00:00:15]} Qf4
{[%clk 00:49:45]} {[%emt 00:00:05]} 60. Kg1 {[%clk 00:21:42]} {[%emt 00:00:17]}
Qd2 {[%clk 00:50:11]} {[%emt 00:00:04]} 61. Kf1 {[%clk 00:21:58]} {[%emt
00:00:15]} Kc5 {[%clk 00:50:33]} {[%emt 00:00:08]} 62. Kg1 {[%clk 00:22:16]}
{[%emt 00:00:13]} b5 {[%clk 00:50:59]} {[%emt 00:00:40]} 0-1